bitfinex-derivatives/quotes_ETHF0:USTF0_20250116
["timestamp","ask_amount","ask_price","bid_price","bid_amount"]
[1737025845597,0.59985,3334.7,3334.6,0.59986]
[1737025845800,0.5998,3335.0,3334.8,0.59981]
[1737025845999,1.08094,3335.3,3335.1,0.59976]
[1737025846496,1.08094,3335.3,3334.7,2.82666535]
[1737025846497,0.4812,3335.3,3335.0,0.59979]
[1737025846801,0.4812,3335.3,3335.1,0.59977]
[1737025846995,0.4812,3335.3,3334.7,6.03446535]
[1737025847298,0.4812,3335.3,3335.2,0.59975]
[1737025847499,1.08094,3335.3,3335.2,0.59975]
[1737025847700,0.4812,3335.3,3335.2,0.59975]
[1737025847900,0.4812,3335.3,3335.1,2.82666535]
[1737025848103,0.4812,3335.3,3335.2,0.59975]
[1737025848104,1.08094,3335.3,3335.2,0.59975]
[1737025848306,0.4812,3335.3,3335.1,2.82666535]
[1737025848499,0.4812,3335.3,3334.7,6.03446535]
[1737025848903,0.59982,3334.8,3334.7,6.03446535]
[1737025849103,3.2078,3335.0,3334.3,6.03446535]
[1737025849401,0.59983,3334.8,3334.7,0.59984]
[1737025849700,0.59982,3334.9,3334.3,6.03446535]
[1737025849904,0.59985,3334.7,3334.6,0.59985]
[1737025850296,3.2078,3335.0,3334.8,0.59982]
[1737025850297,0.59981,3334.9,3334.8,0.59982]
[1737025850497,0.59983,3334.8,3334.7,0.59983]
[1737025850796,0.59986,3334.6,3334.4,0.59989]
[1737025850993,0.5999,3334.4,3334.3,6.03446535]
[1737025851195,0.5999,3334.4,3334.3,3.2078]
[1737025852407,0.59995,3334.1,3334.0,1.285]
[1737025853001,3.6587,3334.5,3333.7,3.2078]
[1737025853306,0.60008,3333.4,3333.3,0.60009]
[1737025853698,0.60007,3333.5,3333.4,0.60007]
[1737025854105,1.96357,3334.0,3333.2,4.4928]
[1737025854302,0.4636,3334.0,3333.2,4.4928]
[1737025854613,0.60008,3333.5,3333.4,0.60007]
[1737025854904,0.60009,3333.3,3333.2,5.0929]
[1737025855107,0.60009,3333.4,3333.3,0.60008]
[1737025855305,0.4869,3333.6,3333.5,0.60006]
[1737025855606,0.4719,3334.4,3333.5,2.82666535]
[1737025855908,1.08681,3334.3,3334.2,0.59992]
[1737025856209,6.99822402,3335.0,3334.4,0.5999]
[1737025856398,8.49955966,3334.9,3334.8,3.42648535]
[1737025856599,8.01265966,3334.9,3334.8,4.71148535]
[1737025856899,0.59978,3335.1,3335.0,0.59979]
[1737025857101,3.80755,3335.3,3335.2,0.59975]
[1737025857300,0.59977,3335.2,3335.1,0.59976]
[1737025857608,6.99822402,3335.5,3335.4,0.59972]
[1737025857900,0.4869,3336.0,3335.4,6.03446535]
[1737025858101,0.5997,3335.5,3335.4,7.31946535]
[1737025858306,3.2078,3335.7,3335.2,1.285]
[1737025858607,0.59975,3335.2,3335.1,1.285]
[1737025859302,3.2078,3335.7,3335.1,1.285]
[1737025859504,0.59967,3335.7,3335.6,0.59968]
[1737025859704,0.8982,3335.9,3335.8,0.59965]
[1737025859705,1.49784,3335.9,3335.8,0.59965]
[1737025859907,1.08651,3336.0,3335.7,3.2078]
[1737025860107,1.08651,3336.0,3335.9,0.59963]
[1737025860410,0.4869,3336.0,3335.7,3.2078]
[1737025860609,0.4869,3336.0,3335.8,2.82666535]
[1737025860914,3.2078,3336.1,3336.0,0.59961]
[1737025862009,0.59962,3336.0,3335.9,0.59962]
[1737025862308,0.59963,3335.9,3335.8,4.71130535]
[1737025862510,3.2078,3336.1,3335.8,4.71130535]
[1737025862712,3.2078,3336.1,3335.8,4.11166535]
[1737025862906,0.59962,3336.0,3335.9,0.59962]
[1737025863102,0.59963,3335.9,3335.8,4.11166535]
[1737025863300,3.2078,3336.1,3335.4,4.11166535]
[1737025863608,3.2078,3336.1,3335.4,1.285]
[1737025863609,0.5997,3335.5,3335.4,1.285]
[1737025863816,0.4801,3335.8,3335.4,1.285]
[1737025864014,0.4801,3335.8,3335.4,4.11166535]
[1737025864207,0.5997,3335.5,3335.4,2.82666535]
[1737025864410,3.6792,3335.7,3334.9,6.03446535]
[1737025864708,0.59971,3335.5,3335.3,2.82666535]
[1737025864906,0.59971,3335.5,3335.4,0.59972]
[1737025865101,3.6792,3335.7,3335.3,2.82666535]
[1737025865608,0.59972,3335.4,3335.3,2.82666535]
[1737025866707,0.59979,3335.0,3334.9,6.03446535]
[1737025866907,0.59979,3335.0,3334.9,7.91827535]
[1737025867114,1.49921,3335.6,3334.9,7.31846535]
[1737025867301,0.59973,3335.4,3335.3,0.59973]
[1737025867509,3.80747,3335.7,3335.6,0.59968]
[1737025867912,3.2078,3335.7,3335.6,0.59968]
[1737025868215,3.80746,3335.7,3335.6,0.59968]
[1737025868411,3.80747,3335.7,3335.6,0.59968]
[1737025868711,3.2078,3336.1,3335.6,1.284]
[1737025868911,3.2078,3336.1,3335.8,2.82666535]
[1737025869114,3.2078,3336.1,3336.0,0.59961]
[1737025869314,6.99822402,3336.7,3336.3,0.59956]
[1737025869512,6.99822402,3336.7,3336.6,0.5995]
[1737025870513,2.17893029,3336.9,3336.8,0.59947]
[1737025870716,2.17893029,3336.9,3336.8,6.63393535]
[1737025871014,2.17893029,3336.9,3336.8,7.92793535]
[1737025871211,0.4689,3337.7,3336.8,7.32846535]
[1737025871411,0.59934,3337.5,3337.3,6.03446535]
[1737025871607,0.4689,3337.7,3337.3,6.03446535]
[1737025871807,0.59935,3337.5,3337.3,6.03446535]
[1737025872008,0.4689,3337.7,3337.3,6.03446535]
[1737025872207,0.4689,3337.7,3337.5,0.59933]
[1737025872415,0.59932,3337.6,3337.5,1.293]
[1737025872713,10.48479881,3339.8,3337.5,1.293]
[1737025872919,0.59927,3337.9,3337.8,2.82666535]
[1737025873220,3.2078,3338.6,3337.8,6.03446535]
[1737025873514,0.59917,3338.5,3337.8,7.53267535]
[1737025873819,0.59916,3338.5,3338.3,0.59918]
[1737025874007,0.59916,3338.5,3338.4,1.293]
[1737025875210,1.4188,3338.8,3338.4,1.293]
[1737025875611,0.59913,3338.7,3338.5,0.59915]
[1737025875809,0.59913,3338.7,3338.5,0.59914]
[1737025876107,0.59915,3338.6,3338.4,1.89216]
[1737025876315,0.59914,3338.7,3338.4,1.293]
[1737025876521,0.59914,3338.7,3338.5,0.59915]
[1737025876711,0.59914,3338.7,3338.4,1.293]
[1737025876906,0.59914,3338.6,3338.4,1.293]
[1737025877217,1.4188,3338.8,3338.4,1.293]
[1737025877614,3.2078,3338.5,3337.8,2.82666535]
[1737025877806,3.2078,3338.5,3337.7,3.2078]
[1737025878321,0.59926,3338.0,3337.8,0.59928]
[1737025878515,0.5992,3338.3,3337.9,0.59927]
[1737025878716,3.80697,3338.5,3338.3,0.59918]
[1737025878916,3.80697,3338.5,3337.8,2.82666535]
[1737025878917,3.2078,3338.5,3338.4,0.59918]
[1737025879211,3.2078,3338.5,3337.8,2.82666535]
[1737025879413,0.59921,3338.3,3338.1,0.59923]
[1737025879607,3.2078,3338.5,3337.9,1.89226]
[1737025879805,0.59923,3338.2,3338.0,0.59924]
[1737025880010,0.59924,3338.1,3338.0,0.59924]
[1737025880418,3.2078,3338.5,3337.9,1.293]
[1737025880816,0.4564,3338.7,3338.2,6.03446535]
[1737025881218,0.59917,3338.5,3338.3,0.59918]
[1737025881517,0.59917,3338.5,3338.4,0.59918]
[1737025881712,0.4564,3338.7,3338.2,3.2078]
[1737025881913,0.5992,3338.3,3338.2,3.2078]
[1737025882311,0.4564,3338.7,3338.2,3.2078]
[1737025882520,0.59918,3338.4,3338.3,0.59919]
[1737025882818,3.2078,3338.9,3338.2,6.03446535]
[1737025883010,3.2078,3339.8,3338.8,2.82666535]
[1737025883211,0.59895,3339.7,3339.5,0.59898]
[1737025883417,0.59895,3339.7,3339.5,0.59897]
[1737025883720,3.2078,3339.8,3339.2,2.82666535]
[1737025883907,0.59897,3339.6,3339.3,0.59902]
[1737025884107,0.599,3339.4,3339.3,0.59901]
[1737025884309,0.4546,3339.7,3339.0,3.2078]
[1737025884815,0.4546,3339.7,3338.9,4.11966535]
[1737025884816,0.4546,3339.7,3339.6,0.59896]
[1737025885115,1.05355,3339.7,3339.6,0.59896]
[1737025885314,1.05355,3339.7,3339.4,3.2078]
[1737025885315,0.4546,3339.7,3339.5,0.59898]
[1737025885621,0.4546,3339.7,3339.4,3.2078]
[1737025885815,0.59896,3339.6,3339.5,0.59898]
[1737025886120,0.59901,3339.4,3339.0,3.2078]
[1737025886419,0.4546,3339.7,3339.1,1.293]
[1737025886609,0.59899,3339.5,3339.1,1.293]
[1737025886816,0.4546,3339.7,3339.0,3.2078]
[1737025887119,0.59901,3339.4,3339.3,0.59901]
[1737025887320,0.4546,3339.7,3339.0,3.2078]
[1737025887523,0.59903,3339.3,3339.2,0.59903]
[1737025887919,0.59901,3339.4,3339.3,0.59901]
[1737025888122,3.2078,3340.2,3339.3,2.82666535]
[1737025888322,3.2078,3340.2,3339.7,3.42559535]
[1737025888323,0.59893,3339.8,3339.7,3.42559535]
[1737025888620,0.59893,3339.8,3339.7,3.42561535]
[1737025888813,0.59893,3339.8,3339.7,2.82666535]
[1737025889021,1.49719,3340.1,3339.6,0.59896]
[1737025889217,0.59896,3339.6,3339.5,3.2078]
[1737025890317,0.59896,3339.6,3339.5,3.80678]
[1737025890522,0.59896,3339.6,3339.5,3.2078]
[1737025891116,0.59907,3339.1,3339.0,3.2078]
[1737025891524,0.59907,3339.1,3339.0,3.80687]
[1737025891716,1.4973,3339.9,3339.0,3.2078]
[1737025892025,1.49707,3340.4,3339.7,0.59895]
[1737025892320,0.59892,3339.9,3339.7,0.59895]
[1737025892523,0.4721,3340.1,3339.3,2.82666535]
[1737025892718,0.59896,3339.7,3339.6,0.59895]
[1737025892923,0.59896,3339.7,3339.6,1.89095]
[1737025893118,0.4714,3340.0,3339.6,1.292]
[1737025893315,0.59895,3339.8,3339.7,0.59894]
[1737025893516,0.59895,3339.7,3339.6,1.89096]
[1737025894224,0.599,3339.4,3339.3,0.59901]
[1737025894417,0.599,3339.4,3339.0,3.43369602]
[1737025894418,0.59896,3339.6,3339.5,1.292]
[1737025894821,0.59892,3339.9,3339.8,0.59892]
[1737025895419,1.0703,3340.0,3339.9,0.59891]
[1737025895723,0.59885,3340.3,3340.2,0.59884]
[1737025895928,0.4562,3340.5,3339.9,3.2078]
[1737025896118,0.59889,3340.1,3340.0,0.59888]
[1737025896318,0.4562,3340.5,3339.9,3.2078]
[1737025896529,0.59889,3340.0,3339.9,3.8067]
[1737025896721,0.59889,3340.0,3339.9,3.2078]
[1737025897724,0.59898,3339.5,3339.4,5.09878]
[1737025898028,0.59897,3339.6,3339.5,0.59895]
[1737025898329,0.59897,3339.7,3339.6,0.59895]
[1737025898824,0.4753,3340.0,3339.5,0.59897]
[1737025898825,0.59898,3339.6,3339.5,0.59897]
[1737025899024,1.97257,3340.0,3339.4,3.2078]
[1737025899025,0.9354,3340.0,3339.4,3.2078]
[1737025899227,0.59898,3339.5,3339.4,3.2078]
[1737025901122,1.05696,3339.7,3339.6,0.59896]
[1737025901330,0.59898,3339.5,3339.4,3.80679]
[1737025901530,0.59898,3339.5,3339.4,3.2078]
[1737025902032,0.458,3339.7,3339.6,0.59896]
[1737025902238,0.4753,3340.0,3339.4,3.2078]
[1737025902427,1.0742,3340.0,3339.9,0.59891]
[1737025902623,0.59894,3339.8,3339.7,0.59892]
[1737025902842,0.59898,3339.6,3339.5,0.59897]
[1737025903129,0.59896,3339.7,3339.6,0.59894]
[1737025903327,0.59898,3339.5,3339.4,3.2078]
[1737025903531,1.49713,3340.3,3339.4,3.2078]
[1737025903724,0.59891,3340.0,3339.9,0.59889]
[1737025904527,0.59891,3339.9,3339.8,1.89991]
[1737025904930,4.70497,3340.2,3339.6,0.59895]
[1737025904931,0.59897,3339.7,3339.6,0.59895]
[1737025905234,0.59897,3339.7,3339.6,1.89995]
[1737025907633,3.2078,3340.2,3339.6,1.301]
[1737025908027,0.59895,3339.7,3339.6,1.89995]
[1737025909132,1.49719,3340.1,3339.6,1.301]
[1737025909332,0.59895,3339.8,3339.7,0.59893]
[1737025909534,3.6932,3340.2,3339.3,2.82666535]
[1737025909729,0.59898,3339.5,3339.4,3.80679]
[1737025910633,0.59898,3339.5,3339.4,3.2078]
[1737025910832,0.59898,3339.5,3339.4,3.8068]
[1737025911237,0.59905,3339.2,3339.1,0.59903]
[1737025911531,0.59902,3339.4,3339.3,0.599]
[1737025911740,0.59904,3339.3,3339.2,0.59902]
[1737025912236,0.59907,3339.1,3339.0,0.59905]
[1737025914731,0.4916,3339.4,3338.9,6.03446535]
[1737025914938,0.59907,3339.0,3338.9,7.93553535]
[1737025915438,0.59906,3339.2,3339.1,0.59904]
[1737025915639,0.59907,3339.0,3338.9,7.49495881]
[1737025915843,0.59907,3339.0,3338.9,2.38607881]
[1737025916032,0.59907,3339.0,3338.9,2.98516881]
[1737025916539,0.59907,3339.0,3338.9,2.38607881]
[1737025916928,0.59907,3339.0,3338.9,2.98516881]
[1737025920841,0.59907,3339.0,3338.9,2.38607881]
[1737025921742,0.59909,3338.9,3338.8,1.302]
[1737025922131,0.4793,3339.1,3338.5,3.2078]
[1737025922132,0.59914,3338.6,3338.5,3.2078]
[1737025922335,1.49773,3338.9,3338.2,7.89410419]
[1737025922534,1.49773,3338.9,3338.4,2.38607881]
[1737025922736,0.5992,3338.3,3338.2,5.28551419]
[1737025922944,1.49778,3338.8,3338.2,4.68630419]
[1737025923141,0.4627,3338.7,3338.2,4.68630419]
[1737025923332,0.4627,3338.7,3338.4,2.38607881]
[1737025923743,0.59916,3338.5,3338.4,2.38607881]
[1737025923938,0.59916,3338.5,3338.4,2.98525881]
[1737025924246,0.59916,3338.5,3338.4,2.38607881]
[1737025924839,0.59916,3338.5,3338.4,2.98525881]
[1737025925543,0.59916,3338.5,3338.4,2.38607881]
[1737025925742,0.59923,3338.1,3338.0,1.302]
[1737025925941,0.59927,3337.9,3337.8,5.59387881]
[1737025926341,1.49796,3338.4,3337.9,0.59926]
[1737025926342,0.59926,3338.0,3337.9,0.59926]
[1737025926542,0.4615,3338.3,3337.8,5.59387881]
[1737025926739,0.59927,3337.9,3337.8,5.59387881]
[1737025926945,0.59927,3337.9,3337.8,6.19316881]
[1737025927148,0.59927,3338.0,3337.9,0.59926]
[1737025927354,0.59927,3337.9,3337.8,5.59387881]
[1737025927647,0.59927,3337.9,3337.8,2.38607881]
[1737025928248,0.4615,3338.3,3337.8,2.38607881]
[1737025928249,0.4615,3338.3,3337.8,5.59387881]
[1737025928454,0.59924,3338.2,3338.1,2.98529881]
[1737025928749,0.4615,3338.3,3338.2,0.59922]
[1737025928750,1.0607,3338.3,3338.2,0.59922]
[1737025928948,0.4735,3338.7,3338.1,2.38607881]
[1737025929246,0.4735,3338.7,3338.4,2.38607881]
[1737025929449,0.59915,3338.7,3338.6,0.59914]
[1737025929644,0.59913,3338.8,3338.4,2.38607881]
[1737025929841,0.59913,3338.8,3338.3,1.49798]
[1737025929842,0.4693,3339.2,3338.7,2.38607881]
[1737025930054,0.59911,3338.8,3338.7,2.98518881]
[1737025930253,0.59913,3338.7,3338.6,0.59913]
[1737025930447,1.95464,3339.1,3338.5,1.298]
[1737025930752,0.59914,3338.6,3338.5,1.89715]
[1737025931144,0.59914,3338.6,3338.5,1.298]
[1737025931847,0.59916,3338.5,3338.4,2.38607881]
[1737025932043,0.59922,3338.2,3338.1,2.38607881]
[1737025932240,0.59923,3338.1,3338.0,1.298]
[1737025932446,0.59932,3337.6,3337.5,2.98539881]
[1737025932647,0.59932,3337.6,3337.5,4.28339881]
[1737025932857,0.59932,3337.6,3337.5,2.38607881]
[1737025933346,0.4821,3337.8,3337.3,3.2078]
[1737025933551,0.59936,3337.4,3337.3,3.80718]
[1737025933857,0.59935,3337.5,3337.4,0.59934]
[1737025934051,0.59935,3337.5,3337.4,2.98541881]
[1737025934445,0.59932,3337.7,3337.6,0.59931]
[1737025934646,0.59934,3337.6,3337.5,0.59933]
[1737025934846,0.4821,3337.8,3337.4,2.38607881]
[1737025935048,0.59927,3338.0,3337.9,0.59925]
[1737025935255,0.4741,3338.1,3337.7,5.59387881]
[1737025935459,0.4741,3338.1,3338.0,2.98532881]
[1737025935460,1.07333,3338.1,3338.0,2.98532881]
[1737025935950,1.07333,3338.1,3338.0,2.38607881]
[1737025936146,1.07333,3338.1,3338.0,2.98532881]
[1737025936449,0.4741,3338.1,3338.0,2.98532881]
[1737025936848,1.07333,3338.1,3338.0,2.98532881]
[1737025937044,0.59921,3338.3,3338.0,2.38607881]
[1737025937249,0.59921,3338.3,3338.2,0.59922]
[1737025937448,0.4633,3338.5,3338.0,2.38607881]
[1737025937658,0.59923,3338.1,3338.0,2.98531881]
[1737025938649,0.59922,3338.2,3338.1,0.59921]
[1737025939755,0.59923,3338.1,3338.0,2.98531881]
[1737025940265,0.59923,3338.1,3338.0,2.38607881]
[1737025940452,0.59923,3338.1,3338.0,2.98532881]
[1737025940648,0.4633,3338.5,3338.0,2.38607881]
[1737025940852,3.2078,3338.6,3338.5,0.59916]
[1737025941059,1.49753,3339.4,3339.1,0.59905]
[1737025941060,1.07144,3339.2,3339.1,0.59905]
[1737025941461,0.4724,3339.2,3339.1,0.59905]
[1737025942160,0.59901,3339.4,3339.3,0.59902]
[1737025942552,0.59903,3339.4,3339.3,0.599]
[1737025943057,3.21079873,3339.5,3339.0,5.59387881]
[1737025943258,3.21079873,3339.5,3339.4,0.599]
[1737025943461,3.80977873,3339.5,3339.4,0.599]
[1737025943854,3.80977873,3339.5,3339.4,3.2078]
[1737025943855,0.00299873,3339.5,3339.4,3.2078]
[1737025944055,0.00299873,3339.5,3339.4,3.8068]
[1737025954977,0.00299873,3339.5,3339.4,8.8068]
[1737025955364,0.00299873,3339.5,3339.4,3.8068]
[1737025955875,0.00299873,3339.5,3339.4,8.8068]
[1737025956075,0.00299873,3339.5,3339.4,9.2635]
[1737025956271,0.4815,3340.4,3340.3,0.59884]
[1737025956468,0.4815,3340.4,3340.3,2.98491881]
[1737025956869,1.08032,3340.4,3340.3,0.59884]
[1737025957166,0.4815,3340.4,3340.3,0.59884]
[1737025957370,1.08032,3340.4,3340.3,0.59884]
[1737025957668,0.59886,3340.3,3340.2,0.59884]
[1737025957973,0.59886,3340.2,3340.1,1.298]
[1737025958373,0.59888,3340.1,3340.0,0.59888]
[1737025958570,0.4879,3340.1,3339.8,0.59891]
[1737025958769,0.59892,3339.9,3339.8,0.59891]
[1737025959280,0.4879,3340.1,3339.8,0.59891]
[1737025959281,0.4879,3340.1,3340.0,0.59889]
[1737025959576,3.80665,3340.3,3339.8,2.38607881]
[1737025959876,3.80665,3340.3,3340.2,0.59886]
[1737025959877,3.2078,3340.3,3340.2,0.59886]
[1737025961367,3.2078,3340.9,3340.8,0.59875]
[1737025961572,0.59873,3340.9,3340.8,0.59875]
[1737025962065,0.9782,3341.0,3340.9,0.59873]
[1737025962265,3.2078,3341.8,3340.9,5.59387881]
[1737025962479,21.52021103,3342.0,3341.6,2.38607881]
[1737025962677,0.4842,3342.0,3341.9,2.98462881]
[1737025962881,0.4842,3342.0,3341.9,2.38607881]
[1737025962882,1.08273,3342.0,3341.9,2.38607881]
[1737025963177,0.4842,3342.0,3341.6,2.38607881]
[1737025963575,0.4842,3342.0,3341.5,1.283]
[1737025963771,0.59861,3341.6,3341.5,1.283]
[1737025964575,3.2078,3341.9,3341.5,1.283]
[1737025964576,0.59858,3341.8,3341.7,0.59858]
[1737025964777,0.59858,3341.8,3341.7,2.38607881]
[1737025964979,3.2078,3341.9,3341.7,2.38607881]
[1737025965179,0.4842,3342.0,3341.7,2.38607881]
[1737025965381,0.4842,3342.0,3341.9,0.59855]
[1737025965874,3.2078,3342.7,3341.8,1.49643]
[1737025966075,3.80622,3342.7,3342.6,2.38607881]
[1737025966378,3.2078,3342.7,3342.6,2.98450881]
[1737025966775,4.625,3343.2,3342.6,2.38607881]
[1737025966976,0.59838,3342.9,3342.8,2.38607881]
[1737025967278,3.2078,3344.0,3342.9,1.49594]
[1737025967480,1.07021,3343.9,3343.6,0.59824]
[1737025967678,3.2078,3344.7,3343.8,5.59387881]
[1737025967881,0.59812,3344.4,3344.3,2.38607881]
[1737025968079,0.59812,3344.4,3343.9,1.283]
[1737025968080,3.2078,3344.7,3344.5,0.59808]
[1737025968279,0.9433,3344.8,3344.6,0.59806]
[1737025968476,0.9433,3344.8,3344.6,2.38607881]
[1737025968980,1.54135,3344.8,3344.6,2.38607881]
[1737025969183,0.9433,3344.8,3344.6,2.38607881]
[1737025969384,0.9433,3344.8,3344.6,2.80933881]
[1737025969583,0.472,3344.8,3344.7,3.2078]
[1737025969784,3.6957,3345.5,3344.7,3.2078]
[1737025970081,4.1677,3345.5,3344.7,3.2078]
[1737025970472,0.59801,3345.0,3344.7,3.80584]
[1737025970675,0.59798,3345.2,3344.8,0.59802]
[1737025970985,0.59795,3345.3,3344.9,0.59801]
[1737025971282,4.1677,3345.5,3344.9,0.59802]
[1737025971283,3.2078,3345.0,3344.9,0.59802]
[1737025971487,3.2078,3345.0,3344.6,3.2078]
[1737025971488,0.9599,3345.5,3345.3,0.59793]
[1737025971676,0.9599,3345.5,3345.4,3.40726881]
[1737025971677,0.472,3345.5,3345.4,3.40726881]
[1737025971881,3.2078,3346.0,3345.4,2.80933881]
[1737025972087,0.4462,3346.8,3345.8,2.80933881]
[1737025972278,0.4462,3346.8,3346.1,6.01713881]
[1737025972586,0.59766,3346.9,3346.1,6.01713881]
[1737025972775,0.59773,3346.5,3346.1,7.29913881]
[1737025972978,3.2078,3346.5,3346.1,2.80933881]
[1737025973177,0.4462,3346.9,3346.1,2.80933881]
[1737025973376,0.4462,3346.9,3346.1,6.01713881]
[1737025973590,0.59772,3346.6,3346.1,6.01713881]
[1737025973880,0.4462,3346.9,3346.1,6.01713881]
[1737025974088,0.59768,3346.8,3346.3,0.59775]
[1737025974293,0.4462,3346.9,3346.5,2.80933881]
[1737025974676,0.59769,3346.8,3346.5,2.80933881]
[1737025975085,0.4462,3346.9,3346.1,6.01713881]
[1737025975284,0.59778,3346.2,3346.1,2.80933881]
[1737025975584,0.59786,3345.8,3345.7,2.80933881]
[1737025975788,3.2078,3346.0,3345.4,1.282]
[1737025975987,1.05004,3345.9,3345.4,1.87993]
[1737025976182,0.4522,3345.9,3345.4,1.282]
[1737025976389,0.59788,3345.7,3345.4,1.282]
[1737025976579,0.59786,3345.8,3345.4,1.87992]
[1737025976786,1.05004,3345.9,3345.7,2.80933881]
[1737025977097,0.4522,3345.9,3345.7,2.80933881]
[1737025977385,0.59769,3346.8,3346.4,0.59775]
[1737025977585,0.4872,3347.3,3346.4,2.80933881]
[1737025977586,3.2078,3347.3,3346.4,2.80933881]
[1737025977793,2.9049749,3347.4,3347.3,0.59759]
[1737025978089,2.9049749,3347.4,3347.3,4.4888]
[1737025978585,0.59759,3347.3,3347.2,2.80933881]
[1737025978789,3.2078,3347.3,3346.8,2.80933881]
[1737025978997,2.9049749,3347.4,3347.2,2.80933881]
[1737025979588,0.59759,3347.3,3347.2,2.80933881]
[1737025979790,0.59764,3347.0,3346.9,3.2078]
[1737025980093,0.59764,3347.1,3346.9,1.281]
[1737025980293,0.59764,3347.0,3346.9,1.281]
[1737025980691,0.4667,3347.3,3346.9,1.281]
[1737025980891,0.59763,3347.1,3346.9,1.281]
[1737025981082,0.59764,3347.0,3346.9,1.281]
[1737025981386,0.59766,3346.9,3346.8,2.80933881]
[1737025982391,3.6745,3347.3,3346.6,1.281]
[1737025983091,3.6745,3347.3,3346.8,2.80933881]
[1737025983293,2.9049749,3347.4,3347.2,2.80933881]
[1737025983492,2.9049749,3347.4,3347.3,1.281]
[1737025983793,3.5025449,3347.4,3347.3,1.281]
[1737025984090,2.9049749,3347.4,3347.3,1.281]
[1737025984295,2.9049749,3347.4,3347.3,1.87859]
[1737025985596,2.9049749,3347.4,3347.3,1.281]
[1737025985790,3.5025449,3347.4,3347.3,1.281]
[1737025985988,2.9049749,3347.4,3347.3,1.281]
[1737025986186,3.5025449,3347.4,3347.3,1.281]
[1737025986390,3.5025449,3347.4,3346.9,3.2078]
[1737025986391,2.9049749,3347.4,3346.9,3.2078]
[1737025986588,0.59764,3347.0,3346.9,4.4888]
[1737025986790,2.9049749,3347.4,3346.8,2.80933881]
[1737025986791,0.59766,3346.9,3346.8,2.80933881]
[1737025987095,3.2078,3347.0,3346.4,4.09033881]
[1737025987298,0.4597,3346.9,3346.8,0.59768]
[1737025987490,0.59768,3346.8,3346.4,4.09033881]
[1737025987696,3.2078,3346.6,3346.0,13.57733881]
[1737025988000,0.5978,3346.1,3346.0,2.80933881]
[1737025988302,0.5978,3346.1,3345.6,2.80933881]
[1737025988303,0.59787,3345.7,3345.6,2.80933881]
[1737025988789,3.2078,3346.1,3345.6,2.80933881]
[1737025988790,0.4613,3346.0,3345.6,2.80933881]
[1737025988990,0.25508706,3346.0,3345.6,2.80933881]
[1737025989391,0.59787,3345.7,3345.6,2.80933881]
[1737025990197,0.25508706,3346.0,3345.6,2.80933881]
[1737025990394,0.59787,3345.7,3345.6,2.80933881]
[1737025990694,0.25508706,3346.0,3345.6,0.59789]
[1737025990890,3.2078,3346.2,3345.8,2.80933881]
[1737025991086,0.59774,3346.5,3346.3,0.59777]
[1737025991290,2.90912087,3347.4,3346.3,0.59777]
[1737025991291,1.05329,3346.8,3346.3,0.59777]
[1737025991486,1.05329,3346.8,3346.6,0.5977]
[1737025991487,0.59768,3346.8,3346.6,0.5977]
[1737025991791,3.2078,3347.2,3346.2,6.01713881]
[1737025991992,3.2078,3347.1,3346.2,6.01713881]
[1737025992291,0.59764,3347.0,3346.4,0.59773]
[1737025992495,0.59771,3346.7,3346.5,0.59772]
[1737025992697,3.2078,3347.1,3346.2,6.01713881]
[1737025993293,0.59765,3347.0,3346.9,0.59766]
[1737025993597,0.59768,3346.8,3346.7,1.307]
[1737025993797,2.90912087,3347.4,3346.7,1.307]
[1737025994091,0.59768,3346.8,3346.7,1.307]
[1737025994298,3.2078,3347.1,3346.6,3.2078]
[1737025994489,3.2078,3347.1,3346.2,2.80933881]
[1737025994894,0.59772,3346.6,3346.4,0.59775]
[1737025995091,3.2078,3347.1,3346.2,2.80933881]
[1737025995295,3.2078,3347.1,3346.6,2.80933881]
[1737025995498,0.59767,3346.9,3346.7,1.90469]
[1737025995895,3.2078,3347.1,3346.5,3.2078]
[1737025996196,0.59771,3346.6,3346.5,3.2078]
[1737025996595,3.2078,3347.1,3346.0,3.80561]
[1737025996898,0.59778,3346.3,3346.2,0.59779]
[1737025997097,1.4942,3346.8,3346.0,4.5148]
[1737025997305,1.49434,3346.5,3346.0,1.307]
[1737025997504,0.5978,3346.1,3346.0,1.307]
[1737025998603,3.2078,3346.5,3345.4,2.80933881]
[1737025998801,0.59786,3345.8,3345.7,1.307]
[1737025999003,0.59782,3346.0,3345.5,1.307]
[1737025999198,0.59789,3345.6,3345.5,1.307]
[1737025999425,3.2078,3346.1,3345.4,2.80933881]
[1737025999609,0.4795,3346.6,3345.6,3.2078]
[1737025999905,0.59781,3346.1,3345.6,3.2078]
[1737026000099,0.59784,3345.9,3345.6,3.2078]
[1737026000303,3.2078,3346.2,3345.4,2.80933881]
[1737026000603,3.2078,3346.2,3345.6,3.2078]
[1737026001307,0.4795,3346.6,3345.6,3.2078]
[1737026001605,0.59783,3346.0,3345.9,0.59783]
[1737026001798,0.59785,3345.9,3345.8,0.59786]
[1737026001998,0.59785,3345.9,3345.7,1.307]
[1737026001999,0.59783,3346.0,3345.9,0.59784]
[1737026002304,0.59786,3345.8,3345.7,1.90487]
[1737026002504,0.59786,3345.8,3345.7,1.307]
[1737026002905,0.59786,3345.8,3345.7,1.90488]
[1737026003306,0.59786,3345.8,3345.7,1.307]
[1737026003611,0.59786,3345.8,3345.7,1.90487]
[1737026003914,0.59783,3346.0,3345.9,0.59784]
[1737026004113,3.2078,3346.2,3345.7,1.307]
[1737026004498,0.59784,3345.9,3345.8,0.59785]
[1737026004709,0.5978,3346.1,3346.0,0.59781]
[1737026004907,3.2078,3346.2,3345.8,0.59785]